fUST/lending_fUST_20240104
["ID","MTS","AMOUNT","RATE_DAILY","PERIOD"]
[310128806,1704378642182,-500.0,0.00038356,7]
[310128807,1704378642192,-500.0,0.00038356,7]
[310128808,1704378642201,-500.0,0.00038356,7]
[310128809,1704378642210,-500.0,0.00038356,7]
[310128810,1704378642219,-1000.0,0.00038356,7]
[310128811,1704378642228,-511.1171968,0.00038356,7]
[310128812,1704378642238,-500.0,0.00038356,7]
[310128813,1704378642247,-500.0,0.00038356,7]
[310128814,1704378642257,-500.0,0.00038356,7]
[310128815,1704378642266,-500.0,0.00038356,7]
[310128816,1704378642275,-500.0,0.00038356,7]
[310128817,1704378642284,-500.0,0.00038356,7]
[310128818,1704378642294,-500.0,0.00038356,7]
[310128819,1704378642304,-500.0,0.00038356,7]
[310128820,1704378642313,-500.0,0.00038356,7]
[310128821,1704378642322,-500.0,0.00038356,7]
[310128822,1704378642331,-562.71,0.00038356,7]
[310128823,1704378642340,-500.0,0.00038356,7]
[310128824,1704378642373,-500.0,0.00038356,7]
[310128825,1704378642382,-500.0,0.00038356,7]
[310128826,1704378642392,-500.0,0.00038356,7]
[310128827,1704378642401,-500.0,0.00038356,7]
[310128828,1704378642410,-500.0,0.00038356,7]
[310128829,1704378642419,-500.0,0.00038356,7]
[310128830,1704378642429,-500.0,0.00038356,7]
[310128831,1704378642438,-316.85089093,0.00038356,7]
[310128832,1704378642447,-728.9,0.00038356,7]
[310128833,1704378642456,-500.0,0.00038356,7]
[310128834,1704378642465,-500.0,0.00038356,7]
[310128835,1704378642475,-500.0,0.00038356,7]
[310128836,1704378642484,-500.0,0.00038356,7]
[310128837,1704378642493,-500.0,0.00038356,7]
[310128838,1704378642503,-500.0,0.00038356,7]
[310128839,1704378642512,-500.0,0.00038356,7]
[310128840,1704378642522,-634.102092,0.00038356,7]
[310128841,1704378642530,-500.0,0.00038356,7]
[310128842,1704378642540,-500.0,0.00038356,7]
[310128843,1704378642549,-500.0,0.00038356,7]
[310128844,1704378642558,-500.0,0.00038356,7]
[310128845,1704378642567,-500.0,0.00038356,7]
[310128846,1704378642577,-500.0,0.00038356,7]
[310128847,1704378642586,-500.0,0.00038356,7]
[310128848,1704378642595,-500.0,0.00038356,7]
[310128849,1704378642604,-500.0,0.00038356,7]
[310128850,1704378642613,-500.0,0.00038356,7]
[310128851,1704378642624,-500.0,0.00038356,7]
[310128852,1704378642633,-577.09927186,0.00038356,7]
[310128853,1704378642643,-500.0,0.00038356,7]
[310128854,1704378642653,-486.37759813,0.00038356,7]
[310128855,1704378642663,-500.0,0.00038356,7]
[310128856,1704378642672,-599.59136795,0.00038356,7]
[310128857,1704378642682,-500.0,0.00038356,7]
[310128858,1704378642691,-600.53546564,0.00038356,2]
[310128859,1704378642701,-500.0,0.00038356,7]
[310128860,1704378642711,-500.0,0.00038356,7]
[310128861,1704378642721,-500.0,0.00038356,7]
[310128862,1704378642731,-500.0,0.00038356,7]
[310128863,1704378642741,-500.0,0.00038356,7]
[310128864,1704378642751,-500.0,0.00038356,7]
[310128865,1704378642760,-381.7227341,0.00038356,7]
[310128867,1704378642770,-154.82968734,0.00038356,7]
[310128868,1704378642779,-676.9,0.00038356,7]
[310128870,1704378642789,-602.61,0.00038356,7]
[310128872,1704378642798,-502.94949339,0.00038356,7]
[310128874,1704378642808,-500.0,0.00038356,7]
[310128877,1704378642817,-500.0,0.00038356,7]
[310128879,1704378642827,-500.0,0.00038356,7]
[310128881,1704378642837,-500.0,0.00038356,7]
[310128883,1704378642847,-501.43563932,0.00038356,7]
[310128891,1704378642916,-500.0,0.00038356,7]
[310128893,1704378642926,-600.50644467,0.00038356,7]
[310128895,1704378642935,-500.72493937,0.00038356,7]
[310128896,1704378642945,-500.0,0.00038356,7]
[310128899,1704378642955,-204.26502508,0.00038356,7]
[310128902,1704378642964,-785.56,0.00038356,7]
[310128904,1704378642973,-317.5434782,0.00038356,7]
[310128906,1704378642983,-601.84,0.00038356,7]
[310128907,1704378642992,-500.0,0.00038356,7]
[310128908,1704378643001,-574.68684892,0.00038356,7]
[310128910,1704378643011,-506.82584597,0.00038356,7]
[310128913,1704378643020,-500.0,0.00038356,7]
[310128916,1704378643030,-500.0,0.00038356,7]
[310128918,1704378643039,-500.0,0.00038356,7]
[310128920,1704378643048,-500.0,0.00038356,7]
[310128921,1704378643057,-500.0,0.00038356,7]
[310128924,1704378643067,-636.23614893,0.00038356,7]
[310128925,1704378643076,-500.0,0.00038356,7]
[310128927,1704378643085,-500.0,0.00038356,7]
[310128929,1704378643095,-500.0,0.00038356,7]
[310128931,1704378643104,-500.0,0.00038356,7]
[310128932,1704378643114,-765.9,0.00038356,7]
[310128934,1704378643123,-500.0,0.00038356,7]
[310128936,1704378643133,-500.0,0.00038356,7]
[310128938,1704378643143,-500.0,0.00038356,7]
[310128940,1704378643152,-500.0,0.00038356,7]
[310128941,1704378643162,-500.0,0.00038356,7]
[310128943,1704378643172,-500.0,0.00038356,7]
[310128945,1704378643181,-500.0,0.00038356,7]
[310128947,1704378643190,-413.73400645,0.00038356,7]
[310128948,1704378643199,-500.0,0.00038356,7]
[310128950,1704378643209,-500.0,0.00038356,7]
[310128952,1704378643218,-500.0,0.00038356,7]
[310128954,1704378643227,-500.0,0.00038356,7]
[310128956,1704378643237,-500.0,0.00038356,7]
[310128958,1704378643246,-500.0,0.00038356,7]
[310128960,1704378643255,-500.0,0.00038356,7]
[310128962,1704378643264,-377.53297422,0.00038356,7]
[310128964,1704378643274,-500.0,0.00038356,7]
[310128965,1704378643283,-500.0,0.00038356,7]
[310128966,1704378643292,-500.0,0.00038356,7]
[310128968,1704378643302,-500.0,0.00038356,7]
[310128970,1704378643312,-225.47993277,0.00038356,2]
[310128972,1704378643321,-500.0,0.00038356,7]
[310128974,1704378643330,-500.0,0.00038356,7]
[310128976,1704378643339,-500.0,0.00038356,7]
[310128978,1704378643349,-500.0,0.00038356,7]
[310128980,1704378643358,-500.0,0.00038356,7]
[310128981,1704378643367,-500.0,0.00038356,7]
[310128982,1704378643377,-500.0,0.00038356,7]
[310128983,1704378643386,-998.67,0.00038356,7]
[310128984,1704378643395,-500.0,0.00038356,7]
[310128985,1704378643404,-600.83019058,0.00038356,7]
[310128986,1704378643416,-2214.33,0.00038356,7]
[310128987,1704378643425,-504.28,0.00038356,7]
[310128988,1704378643435,-500.0,0.00038356,7]
[310128990,1704378643444,-500.0,0.00038356,7]
[310128992,1704378643454,-500.0,0.00038356,7]
[310128994,1704378643463,-500.0,0.00038356,7]
[310128995,1704378643472,-500.0,0.00038356,7]
[310128997,1704378643481,-221.18926092,0.00038356,7]
[310128999,1704378643490,-500.0,0.00038356,7]
[310129001,1704378643500,-500.0,0.00038356,7]
[310129002,1704378643510,-938.14,0.00038356,7]
[310129003,1704378643519,-500.0,0.00038356,7]
[310129004,1704378643528,-500.0,0.00038356,7]
[310129005,1704378643538,-179.06849777,0.00038356,7]
[310129006,1704378643547,-510.66993741,0.00038356,7]
[310129008,1704378643556,-500.0,0.00038356,7]
[310129009,1704378643565,-500.0,0.00038356,7]
[310129010,1704378643574,-500.0,0.00038356,7]
[310129011,1704378643584,-500.0,0.00038356,7]
[310129012,1704378643593,-500.0,0.00038356,7]
[310129013,1704378643602,-500.0,0.00038356,7]
[310129014,1704378643611,-500.0,0.00038356,7]
[310129015,1704378643621,-567.76871787,0.00038356,7]
[310129016,1704378643630,-200.0,0.00038356,7]
[310129017,1704378643639,-590.87,0.00038356,7]
[310129018,1704378643649,-500.0,0.00038356,7]
[310129019,1704378643658,-500.0,0.00038356,7]
[310129020,1704378643672,-500.0,0.00038356,7]
[310129021,1704378643682,-500.0,0.00038356,7]
[310129022,1704378643691,-500.0,0.00038356,7]
[310129023,1704378643701,-520.05263515,0.00038356,7]
[310129024,1704378643711,-500.0,0.00038356,7]
[310129025,1704378643721,-500.0,0.00038356,7]
[310129026,1704378643734,-500.0,0.00038356,7]
[310129027,1704378643744,-500.0,0.00038356,7]
[310129028,1704378643754,-500.0,0.00038356,7]
[310129029,1704378643763,-500.0,0.00038356,7]
[310129030,1704378643775,-150.0,0.00038356,7]
[310129031,1704378643785,-501.72913363,0.00038356,7]
[310129032,1704378643794,-500.0,0.00038356,7]
[310129033,1704378643804,-511.17706722,0.00038356,7]
[310129034,1704378643816,-500.0,0.00038356,7]
[310129035,1704378643826,-500.0,0.00038356,7]
[310129036,1704378643837,-500.0,0.00038356,7]
[310129037,1704378643847,-508.85715628,0.00038356,7]
[310129038,1704378643856,-604.70322922,0.00038356,7]
[310129039,1704378643866,-500.0,0.00038356,7]
[310129040,1704378643876,-500.0,0.00038356,7]
[310129041,1704378643886,-500.0,0.00038356,7]
[310129042,1704378643896,-503.76135791,0.00038356,7]
[310129043,1704378643906,-500.0,0.00038356,7]
[310129044,1704378643922,-518.2220612,0.00038356,7]
[310129045,1704378643931,-1000.0,0.00038356,2]
[310129046,1704378643941,-500.0,0.00038356,7]
[310129047,1704378643951,-502.58525696,0.00038356,7]
[310129048,1704378643961,-1000.0,0.00038356,5]
[310129049,1704378643971,-500.0,0.00038356,7]
[310129050,1704378643981,-573.56929322,0.00038356,7]
[310129051,1704378643993,-500.0,0.00038356,7]
[310129052,1704378644003,-500.0,0.00038356,7]
[310129053,1704378644013,-500.0,0.00038356,7]
[310129054,1704378644022,-505.93208002,0.00038356,7]
[310129055,1704378644031,-529.17370015,0.00038356,7]
[310129056,1704378644041,-496.31685656,0.00038356,7]
[310129057,1704378644050,-500.0,0.00038356,7]
[310129058,1704378644059,-167.58573337,0.00038356,7]
[310129059,1704378644068,-503.99963101,0.00038356,7]
[310129060,1704378644077,-173.44529673,0.00038356,7]
[310129061,1704378644142,-500.0,0.00038356,7]
[310129062,1704378644153,-936.46,0.00038356,7]
[310129063,1704378644165,-2773.84,0.00038356,7]
[310129064,1704378644175,-500.0,0.00038356,7]
[310129065,1704378644185,-174.02945353,0.00038356,7]
[310129066,1704378644196,-500.0,0.00038356,7]
[310129067,1704378644205,-508.28484786,0.00038356,7]
[310129068,1704378644215,-500.0,0.00038356,7]
[310129069,1704378644224,-504.69519635,0.00038356,7]
[310129070,1704378644233,-174.27160317,0.00038356,7]
[310129071,1704378644243,-534.00928563,0.00038356,7]
[310129072,1704378644252,-354.35811538,0.00038356,7]
[310129073,1704378644262,-500.0,0.00038356,7]
[310129074,1704378644273,-500.0,0.00038356,7]
[310129075,1704378644282,-500.0,0.00038356,7]
[310129076,1704378644291,-500.0,0.00038356,7]
[310129077,1704378644301,-500.0,0.00038356,7]
[310129078,1704378644311,-500.0,0.00038356,7]
[310129079,1704378644320,-500.0,0.00038356,7]
[310129080,1704378644329,-500.0,0.00038356,7]
[310129081,1704378644339,-500.0,0.00038356,7]
[310129082,1704378644348,-500.0,0.00038356,7]
[310129083,1704378644358,-500.0,0.00038356,7]
[310129084,1704378644367,-500.0,0.00038356,7]
[310129085,1704378644376,-500.0,0.00038356,7]
[310129086,1704378644385,-508.90480259,0.00038356,7]
[310129087,1704378644394,-500.0,0.00038356,7]
[310129088,1704378644404,-548.88,0.00038356,7]
[310129089,1704378644415,-500.0,0.00038356,7]
[310129090,1704378644425,-500.76130408,0.00038356,7]
[310129091,1704378644435,-500.78823606,0.00038356,7]
[310129092,1704378644444,-3363.18,0.00038356,7]
[310129093,1704378644454,-501.58132547,0.00038356,7]
[310129094,1704378644463,-500.0,0.00038356,7]
[310129095,1704378644472,-500.0,0.00038356,7]
[310129096,1704378644482,-509.6545017,0.00038356,7]
[310129097,1704378644491,-500.0,0.00038356,7]
[310129098,1704378644501,-631.80319409,0.00038356,7]
[310129099,1704378644510,-500.0,0.00038356,7]
[310129100,1704378644519,-500.0,0.00038356,7]
[310129101,1704378644528,-500.25977514,0.00038356,7]
[310129102,1704378644538,-500.25361257,0.00038356,7]
[310129103,1704378644546,-500.0,0.00038356,7]
[310129104,1704378644556,-500.0,0.00038356,7]
[310129105,1704378644565,-500.0,0.00038356,7]
[310129106,1704378644575,-500.0,0.00038356,7]
[310129107,1704378644584,-500.0,0.00038356,7]
[310129108,1704378644593,-500.0,0.00038356,7]
[310129109,1704378644603,-500.0,0.00038356,7]
[310129110,1704378644612,-500.0,0.00038356,7]
[310129111,1704378644622,-195.52156936,0.00038356,7]
[310129112,1704378644631,-500.0,0.00038356,7]
[310129113,1704378644640,-500.0,0.00038356,7]
[310129114,1704378644649,-500.0,0.00038356,7]
[310129115,1704378644658,-1029.28,0.00038356,7]
[310129116,1704378644668,-500.0,0.00038356,7]
[310129117,1704378644677,-500.64775227,0.00038356,7]
[310129118,1704378644686,-503.60563972,0.00038356,7]
[310129119,1704378644696,-500.0,0.00038356,7]
[310129120,1704378644705,-1148.31302142,0.00038356,2]
[310129121,1704378644714,-500.0,0.00038356,7]
[310129122,1704378644723,-500.0,0.00038356,7]
[310129123,1704378644732,-930.59,0.00038356,7]
[310129124,1704378644742,-500.0,0.00038356,7]
[310129125,1704378644751,-7189.88,0.00038356,7]
[310129126,1704378644760,-807.95,0.00038356,7]
[310129127,1704378644769,-504.31306424,0.00038356,7]
[310129128,1704378644779,-500.0,0.00038356,7]
[310129129,1704378644788,-574.03322489,0.00038356,7]
[310129130,1704378644798,-304.63185119,0.00038356,7]
[310129131,1704378644808,-2622.15,0.00038356,7]
[310129132,1704378644817,-5000.0,0.00038356,10]
[310129133,1704378644826,-500.0,0.00038356,2]
[310129134,1704378644836,-532.01592707,0.00038356,7]
[310129135,1704378644845,-1640.87,0.00038356,7]
[310129136,1704378644854,-3714.82,0.00038356,7]
[310129137,1704378644863,-500.0,0.00038356,7]
[310129138,1704378644873,-575.08,0.00038356,2]
[310129139,1704378644883,-500.0,0.00038356,7]
[310129140,1704378644892,-500.0,0.00038356,7]
[310129141,1704378644901,-3757.04,0.00038356,7]
[310129142,1704378644910,-500.0,0.00038356,7]
[310129143,1704378644921,-500.0,0.00038356,7]
[310129144,1704378644930,-551.68,0.00038356,7]
[310129145,1704378644940,-500.0,0.00038356,7]
[310129146,1704378644949,-500.0,0.00038356,7]
[310129147,1704378644959,-500.0,0.00038356,7]
[310129148,1704378644968,-500.0,0.00038356,7]
[310129149,1704378644978,-515.95010387,0.00038356,7]
[310129150,1704378644988,-1389.21,0.00038356,7]
[310129151,1704378644997,-500.0,0.00038356,7]
[310129152,1704378645006,-928.48,0.00038356,7]
[310129153,1704378645015,-500.0,0.00038356,7]
[310129154,1704378645024,-500.0,0.00038356,7]
[310129155,1704378645033,-500.0,0.00038356,7]
[310129156,1704378645043,-505.59078828,0.00038356,7]
[310129157,1704378645052,-500.0,0.00038356,7]
[310129158,1704378645061,-500.0,0.00038356,7]
[310129159,1704378645070,-500.0,0.00038356,7]
[310129160,1704378645079,-500.0,0.00038356,7]
[310129161,1704378645088,-463.52467314,0.00038356,7]
[310129162,1704378645098,-500.5192727,0.00038356,7]
[310129163,1704378645107,-945.75,0.00038356,7]
[310129164,1704378645117,-500.0,0.00038356,7]
[310129165,1704378645126,-500.0,0.00038356,7]
[310129166,1704378645135,-500.0,0.00038356,7]
[310129167,1704378645144,-500.0,0.00038356,7]
[310129168,1704378645154,-867.88,0.00038356,7]
[310129169,1704378645164,-487.64848563,0.00038356,7]
[310129170,1704378645173,-500.0,0.00038356,7]
[310129171,1704378645183,-500.0,0.00038356,7]
[310129172,1704378645192,-500.0,0.00038356,7]
[310129173,1704378645251,-12109.38,0.00038356,7]
[310129174,1704378645260,-3889.06,0.00038356,7]
[310129175,1704378645270,-500.0,0.00038356,7]
[310129176,1704378645279,-500.0,0.00038356,7]
[310129177,1704378645288,-777.49,0.00038356,7]
[310129178,1704378645297,-500.0,0.00038356,7]
[310129179,1704378645307,-500.0,0.00038356,7]
[310129180,1704378645317,-500.0,0.00038356,7]
[310129181,1704378645326,-500.0,0.00038356,7]
[310129182,1704378645336,-521.86876738,0.00038356,7]
[310129183,1704378645345,-500.0,0.00038356,7]
[310129184,1704378645356,-500.0,0.00038356,7]
[310129185,1704378645365,-590.68832518,0.00038356,7]
[310129186,1704378645375,-1635.96,0.00038356,7]
[310129187,1704378645384,-500.0,0.00038356,7]
[310129188,1704378645393,-500.0,0.00038356,7]
[310129189,1704378645403,-500.0,0.00038356,7]
[310129190,1704378645412,-570.18020903,0.00038356,7]
[310129191,1704378645425,-500.0,0.00038356,7]
[310129192,1704378645434,-542.43057136,0.00038356,7]
[310129193,1704378645444,-500.0,0.00038356,7]
[310129194,1704378645454,-500.0,0.00038356,7]
[310129195,1704378645465,-505.35394466,0.00038356,7]
[310129196,1704378645474,-501.28017285,0.00038356,7]
[310129197,1704378645484,-28505.95,0.00038356,7]
[310129198,1704378645493,-500.0,0.00038356,7]
[310129199,1704378645502,-46385.68,0.00038356,3]
[310129200,1704378645512,-500.0,0.00038356,7]
[310129201,1704378645521,-500.0,0.00038356,7]
[310129202,1704378645530,-500.0,0.00038356,7]
[310129203,1704378645539,-500.0,0.00038356,7]
[310129204,1704378645549,-500.0,0.00038356,7]
[310129205,1704378645559,-500.0,0.00038356,7]
[310129206,1704378645569,-500.0,0.00038356,7]
[310129207,1704378645578,-500.0,0.00038356,7]
[310129208,1704378645587,-500.0,0.00038356,7]
[310129209,1704378645597,-220.0,0.00038356,2]
[310129210,1704378645606,-500.0,0.00038356,7]
[310129211,1704378645615,-503.64883861,0.00038356,7]
[310129212,1704378645624,-500.0,0.00038356,7]
[310129213,1704378645634,-500.0,0.00038356,7]
[310129214,1704378645643,-500.0,0.00038356,7]
[310129215,1704378645652,-500.0,0.00038356,7]
[310129216,1704378645661,-500.0,0.00038356,7]
[310129217,1704378645670,-3807.74,0.00038356,7]
[310129218,1704378645680,-500.0,0.00038356,7]
[310129219,1704378645689,-337.36555326,0.00038356,7]
[310129220,1704378645699,-500.0,0.00038356,7]
[310129221,1704378645708,-500.0,0.00038356,7]
[310129222,1704378645719,-369.5718302,0.00038356,7]
[310129223,1704378645729,-500.0,0.00038356,7]
[310129224,1704378645742,-503.74934537,0.00038356,7]
[310129225,1704378645751,-500.0,0.00038356,7]
[310129226,1704378645762,-1215.01,0.00038356,7]
[310129227,1704378645771,-500.0,0.00038356,7]
[310129228,1704378645781,-500.0,0.00038356,3]
[310129230,1704378645790,-500.0,0.00038356,7]
[310129231,1704378645799,-504.46693203,0.00038356,7]
[310129232,1704378645809,-514.18944041,0.00038356,7]
[310129233,1704378645819,-500.0,0.00038356,7]
[310129234,1704378645829,-500.0,0.00038356,7]
[310129235,1704378645838,-500.0,0.00038356,7]
[310129236,1704378645848,-506.89111873,0.00038356,7]
[310129237,1704378645857,-500.0,0.00038356,7]
[310129238,1704378645866,-500.0,0.00038356,7]
[310129240,1704378645875,-310.08890374,0.00038356,7]
[310129242,1704378645885,-500.0,0.00038356,7]
[310129244,1704378645894,-836.7,0.00038356,7]
[310129247,1704378645903,-435.96738772,0.00038356,7]
[310129250,1704378645914,-514.7572059,0.00038356,7]
[310129252,1704378645923,-7673.44,0.00038356,7]
[310129253,1704378645932,-636.22438546,0.00038356,7]
[310129255,1704378645941,-500.0,0.00038356,7]
[310129257,1704378645950,-500.0,0.00038356,7]
[310129259,1704378645959,-500.0,0.00038356,7]
[310129261,1704378645968,-500.0,0.00038356,7]
[310129262,1704378645977,-468.37634405,0.00038356,7]
[310129263,1704378645987,-500.0,0.00038356,7]
[310129264,1704378645996,-1229.89,0.00038356,7]
[310129265,1704378646006,-500.0,0.00038356,7]
[310129266,1704378646015,-536.48461639,0.00038356,7]
[310129267,1704378646024,-500.0,0.00038356,7]
[310129268,1704378646033,-500.0,0.00038356,7]
[310129269,1704378646042,-500.0,0.00038356,7]
[310129270,1704378646051,-500.0,0.00038356,7]
[310129271,1704378646060,-218.70537747,0.00038356,7]
[310129272,1704378646069,-500.0,0.00038356,7]
[310129274,1704378646078,-500.0,0.00038356,7]
[310129276,1704378646088,-500.0,0.00038356,7]
[310129277,1704378646097,-523.89789943,0.00038356,7]
[310129278,1704378646106,-500.0,0.00038356,7]
[310129279,1704378646115,-500.0,0.00038356,7]
[310129280,1704378646123,-500.0,0.00038356,7]
[310129281,1704378646133,-500.0,0.00038356,7]
[310129283,1704378646142,-500.0,0.00038356,7]
[310129285,1704378646152,-253.20090575,0.00038356,7]
[310129286,1704378646161,-500.0,0.00038356,2]
[310129287,1704378646171,-504.98469806,0.00038356,7]
[310129288,1704378646180,-336.09856689,0.00038356,7]
[310129289,1704378646190,-2378.79,0.00038356,7]
[310129291,1704378646199,-500.0,0.00038356,7]
[310129293,1704378646208,-500.0,0.00038356,7]
[310129294,1704378646217,-560.8122676,0.00038356,7]
[310129298,1704378646275,-426.52994556,0.00038356,2]
[310129300,1704378646284,-155.0,0.0003837,2]
[310129302,1704378646294,-500.0,0.0003863,7]
[310129304,1704378646304,-500.0,0.0003863,7]
[310129306,1704378646313,-500.0,0.0003863,7]
[310129308,1704378646323,-500.0,0.0003863,7]
[310129310,1704378646332,-500.0,0.0003863,7]
[310129311,1704378646341,-500.0,0.0003863,7]
[310129312,1704378646350,-500.0,0.0003863,7]
[310129313,1704378646360,-500.0,0.0003863,7]
[310129314,1704378646369,-500.0,0.0003863,7]
[310129315,1704378646379,-500.0,0.0003863,7]
[310129316,1704378646388,-500.0,0.0003863,7]
[310129317,1704378646399,-500.0,0.0003863,7]
[310129318,1704378646408,-500.0,0.0003863,7]
[310129319,1704378646417,-345.96094653,0.0003863,7]
[310129320,1704378646426,-500.0,0.0003863,7]
[310129321,1704378646436,-500.0,0.0003863,7]
[310129322,1704378646445,-773.72,0.0003863,7]
[310129323,1704378646454,-500.0,0.0003863,7]
[310129324,1704378646463,-500.0,0.0003863,7]
[310129325,1704378646473,-500.0,0.0003863,7]
[310129327,1704378646482,-500.0,0.0003863,7]
[310129328,1704378646491,-500.0,0.0003863,7]
[310129330,1704378646501,-294.52464306,0.0003863,7]
[310129332,1704378646511,-500.0,0.0003863,7]
[310129334,1704378646520,-500.0,0.0003863,30]
[310129336,1704378646529,-501.34983078,0.0003863,7]
[310129338,1704378646539,-503.54358463,0.0003863,7]
[310129340,1704378646549,-500.0,0.0003863,7]
[310129342,1704378646558,-500.0,0.0003863,7]
[310129344,1704378646567,-500.0,0.0003863,7]
[310129346,1704378646576,-500.0,0.0003863,7]
[310129348,1704378646586,-500.0,0.0003863,7]
[310129350,1704378646595,-500.0,0.0003863,7]
[310129352,1704378646605,-500.82455158,0.0003863,7]
[310129354,1704378646614,-500.0,0.0003863,7]
[310129356,1704378646624,-274.44527464,0.0003863,7]
[310129358,1704378646633,-500.0,0.0003863,7]
[310129360,1704378646642,-933.65,0.0003863,7]
[310129362,1704378646651,-500.0,0.0003863,7]
[310129364,1704378646661,-500.0,0.0003863,7]
[310129365,1704378646671,-297.62585901,0.0003863,7]
[310129366,1704378646680,-500.0,0.0003863,7]
[310129367,1704378646689,-497.20565359,0.0003863,7]
[310129368,1704378646698,-516.57344766,0.0003863,7]
[310129369,1704378646708,-500.0,0.0003863,7]
[310129370,1704378646718,-500.0,0.0003863,7]
[310129371,1704378646727,-500.0,0.0003863,7]
[310129372,1704378646737,-726.47,0.0003863,7]
[310129373,1704378646747,-500.0,0.0003863,7]
[310129374,1704378646756,-921.88,0.0003863,7]
[310129375,1704378646765,-500.0,0.0003863,7]
[310129376,1704378646775,-527.79837527,0.0003863,7]
[310129377,1704378646784,-512.64648022,0.0003863,7]
[310129378,1704378646793,-500.0,0.0003863,7]
[310129379,1704378646802,-500.0,0.0003863,7]
[310129380,1704378646812,-500.0,0.0003863,7]
[310129381,1704378646821,-500.0,0.0003863,7]
[310129382,1704378646831,-166.78581707,0.0003863,7]
[310129383,1704378646843,-500.0,0.0003863,7]
[310129384,1704378646852,-280.88430734,0.0003863,7]
[310129385,1704378646861,-546.7567977,0.0003863,7]
[310129386,1704378646870,-500.0,0.0003863,7]
[310129387,1704378646880,-444.90995867,0.0003863,7]
[310129388,1704378646890,-500.0,0.0003863,7]
[310129389,1704378646900,-500.0,0.0003863,7]
[310129390,1704378646909,-500.0,0.0003863,7]
[310129391,1704378646920,-500.0,0.0003863,7]
[310129392,1704378646930,-618.85601793,0.0003863,7]
[310129393,1704378646939,-500.0,0.0003863,7]
[310129394,1704378646949,-500.0,0.0003863,7]
[310129395,1704378646958,-562.71,0.0003863,7]
[310129396,1704378646967,-500.0,0.0003863,7]
[310129397,1704378646977,-452.20295325,0.0003863,7]
[310129398,1704378646986,-500.0,0.0003863,7]
[310129399,1704378646996,-500.0,0.0003863,7]
[310129400,1704378647007,-500.0,0.0003863,7]
[310129401,1704378647016,-500.0,0.0003863,7]
[310129402,1704378647026,-500.0,0.0003863,7]
[310129403,1704378647035,-500.0,0.0003863,7]
[310129404,1704378647044,-728.9,0.0003863,7]
[310129405,1704378647054,-500.0,0.0003863,7]
[310129406,1704378647063,-500.0,0.0003863,7]
[310129407,1704378647072,-500.0,0.0003863,7]
[310129408,1704378647081,-500.0,0.0003863,7]
[310129409,1704378647090,-500.0,0.0003863,7]
[310129410,1704378647099,-500.0,0.0003863,7]
[310129412,1704378647108,-500.0,0.0003863,7]
[310129414,1704378647117,-501.87283505,0.0003863,7]
[310129416,1704378647126,-512.75106036,0.0003863,7]
[310129417,1704378647135,-500.0,0.0003863,7]
[310129419,1704378647145,-217.31430341,0.0003863,7]
[310129421,1704378647154,-500.0,0.0003863,7]
[310129423,1704378647164,-500.0,0.0003863,7]